fUST/lending_fUST_20240713
["ID","MTS","AMOUNT","RATE_DAILY","PERIOD"]
[331942639,1720881724924,662.5058072,0.00016255,2]
[331942645,1720881772665,950.29706761,0.00016255,2]
[331942647,1720881786305,1577.95662,0.00017309,2]
[331942648,1720881794859,236.9869895,0.00017309,2]
[331942649,1720881796382,180.05717902,0.00016255,2]
[331942650,1720881798192,2837.49498995,0.00016255,2]
[331942651,1720881805937,273.96674058,0.00016255,2]
[331942652,1720881814623,323.19556724,0.00016255,2]
[331942653,1720881818869,42248.84590217,0.00016255,2]
[331942657,1720881849915,599.44172174,0.00016255,2]
[331942658,1720881852805,530.20355034,0.00016255,2]
[331942662,1720881877891,523.91323393,0.00016255,2]
[331942665,1720881884016,194.50164443,0.00016255,2]
[331942666,1720881896331,195.95107396,0.00016255,2]
[331942673,1720881930551,2121.20832974,0.00016255,2]
[331942674,1720881937433,666.48425007,0.00016255,2]
[331942676,1720881941341,247.41329512,0.00016255,2]
[331942680,1720881961178,805.71378172,0.00016255,2]
[331942681,1720881962873,2229.60512901,0.00016255,2]
[331942684,1720881967340,2423.17315558,0.00016255,2]
[331942686,1720881979443,3081.98984845,0.00016255,2]
[331942689,1720881997230,2423.17315558,0.00016255,2]
[331942690,1720882002156,201.09696769,0.00016255,2]
[331942693,1720882013084,201.09696769,0.00016255,2]
[331942697,1720882016080,2134.96934119,0.00016255,2]
[331942698,1720882019587,5507.5385206,0.00016255,2]
[331942699,1720882042145,-300.0,0.00017487,2]
[331942700,1720882042170,-300.0,0.00017487,2]
[331942701,1720882042193,-10480.81062205,0.00017488,2]
[331942708,1720882078929,599.44172174,0.00016255,2]
[331942714,1720882141864,195.88561956,0.00016255,2]
[331942720,1720882147086,-300.0,0.00017487,2]
[331942721,1720882147109,-496.24989653,0.00017488,2]
[331942722,1720882147132,-11756.10310347,0.00017488,2]
[331942725,1720882165105,-2663.08627448,0.00017488,2]
[331942726,1720882165127,-823.5471562,0.00017586,2]
[331942727,1720882165149,-250.0,0.00017836,2]
[331942729,1720882171585,5507.5385206,0.00016255,2]
[331942730,1720882171775,-1009.1584245,0.00018178,2]
[331942737,1720882171902,-1009.1584245,0.00018178,2]
[331942738,1720882171987,-258.78448814,0.00018178,2]
[331942740,1720882174486,3077.67417499,0.00016255,2]
[331942745,1720882196755,-722.89866286,0.00018178,2]
[331942748,1720882196800,-331.80178839,0.00018204,2]
[331942750,1720882196862,-2.22054546,0.00018204,2]
[331942752,1720882196906,-307.40213888,0.00018304,2]
[331942753,1720882196954,-500.0,0.00018304,2]
[331942754,1720882197000,-155.05577127,0.00018304,2]
[331942755,1720882202242,182.54085993,0.00017531,2]
[331942756,1720882204823,420.19811295,0.00016255,2]
[331942757,1720882213104,-300.0,0.00018303,2]
[331942758,1720882213128,-300.0,0.00018303,2]
[331942759,1720882213152,-344.94422873,0.00018304,2]
[331942760,1720882213175,-500.0,0.00018304,2]
[331942761,1720882213200,-500.0,0.00018304,2]
[331942762,1720882213226,-500.0,0.00018304,2]
[331942763,1720882213252,-500.0,0.00018304,2]
[331942764,1720882213275,-500.0,0.00018304,2]
[331942765,1720882213297,-500.0,0.00018304,2]
[331942766,1720882213322,-500.0,0.00018304,2]
[331942767,1720882213344,-500.0,0.00018304,2]
[331942768,1720882213369,-470.31079067,0.00018304,2]
[331942769,1720882213395,-500.0,0.00018304,2]
[331942770,1720882213419,-500.0,0.00018304,2]
[331942771,1720882213442,-500.0,0.00018304,2]
[331942772,1720882213466,-500.0,0.00018304,2]
[331942773,1720882213490,-500.0,0.00018304,2]
[331942774,1720882213514,-500.0,0.00018304,2]
[331942775,1720882213537,-500.0,0.00018304,2]
[331942776,1720882213561,-500.0,0.00018304,2]
[331942777,1720882213583,-186.88593949,0.00018304,2]
[331942778,1720882213607,-500.0,0.00018304,2]
[331942779,1720882213630,-500.0,0.00018304,2]
[331942780,1720882213653,-500.0,0.00018304,2]
[331942781,1720882213677,-500.0,0.00018304,2]
[331942782,1720882213700,-500.0,0.00018304,2]
[331942783,1720882213724,-513.04758077,0.00018304,2]
[331942784,1720882213747,-500.0,0.00018304,2]
[331942785,1720882213771,-192.67116371,0.00018304,2]
[331942786,1720882213794,-339.63504219,0.00018304,2]
[331942787,1720882213817,-500.0,0.00018304,2]
[331942788,1720882213840,-500.0,0.00018304,2]
[331942789,1720882213864,-500.0,0.00018304,2]
[331942790,1720882213886,-553.0,0.00018304,2]
[331942791,1720882213911,-500.0,0.00018304,2]
[331942792,1720882213935,-500.0,0.00018304,2]
[331942793,1720882213960,-500.0,0.00018304,2]
[331942794,1720882213984,-500.0,0.00018304,2]
[331942795,1720882214010,-500.0,0.00018304,2]
[331942796,1720882214037,-500.0,0.00018304,2]
[331942797,1720882214061,-500.0,0.00018304,2]
[331942798,1720882214084,-332.42853873,0.00018304,2]
[331942799,1720882214112,-356.55824558,0.00018899,2]
[331942800,1720882214139,-1987.86604754,0.00018899,2]
[331942801,1720882214165,-201.09696769,0.00018899,2]
[331942802,1720882214189,-599.44172174,0.00018899,2]
[331942803,1720882214213,-571.21533537,0.000189,2]
[331942870,1720882234425,-656.70171724,0.00019039,3]
[331942872,1720882234435,-250.0,0.00019041,2]
[331942874,1720882234445,-3356.08349712,0.00019164,2]
[331942875,1720882234455,-480.89692261,0.00019165,2]
[331942876,1720882234465,-525.56960238,0.00019165,2]
[331942877,1720882234475,-165.28243093,0.00019165,2]
[331942878,1720882234484,-133.47977171,0.00019165,2]
[331942879,1720882234496,-325.03602631,0.00019165,2]
[331942880,1720882234506,-547.47452138,0.00019703,2]
[331942881,1720882234515,-208.81908142,0.00019703,2]
[331942882,1720882234524,-1599.25971489,0.00019703,2]
[331942883,1720882234533,-401.95052043,0.00019703,2]
[331942894,1720882234712,-419.16284525,0.00019703,2]
[331943292,1720882238601,-154.69833824,0.00019165,2]
[331943294,1720882238612,-1601.69450663,0.00019703,2]
[331943296,1720882238622,-4434.04270183,0.00019703,2]
[331943298,1720882238632,-420.0,0.00019964,2]
[331943300,1720882238642,-171.3242108,0.0002,2]
[331943302,1720882238652,-293.58203646,0.0002,2]
[331943304,1720882238663,-420.0,0.00020133,2]
[331943306,1720882238673,-12567.1887121,0.00020535,2]
[331943308,1720882238682,-164.59,0.00020535,3]
[331943310,1720882238691,-493.77,0.00020535,3]
[331943312,1720882238701,-299.18568486,0.00020544,2]
[331943314,1720882238712,-648.84833802,0.00020544,2]
[331943316,1720882238723,-163.36786563,0.00020544,2]
[331943318,1720882238734,-279.22750897,0.00020544,2]
[331943319,1720882238743,-617.0,0.00020544,2]
[331943320,1720882238753,-20727.8833951,0.00021095,2]
[331943321,1720882238762,-613.412655,0.00021096,2]
[331943322,1720882238771,-587.0,0.00021777,2]
[331943323,1720882238780,-329.18,0.00021905,3]
[331943324,1720882238790,-162.249325,0.00021918,2]
[331943325,1720882238800,-587.0,0.00022147,2]
[331943326,1720882238809,-334.02233385,0.00022529,2]
[331943327,1720882238819,-162.249325,0.000232,2]
[331943328,1720882238828,-253.0,0.00023753,2]
[331943329,1720882238837,-571.21533537,0.000239,2]
[331943330,1720882238846,-739.49968497,0.00024,2]
[331943331,1720882238856,-153.0,0.00024117,2]
[331943332,1720882238865,-823.0,0.00024361,2]
[331943333,1720882238875,-162.249325,0.00024482,2]
[331943334,1720882238884,-7637.71638997,0.00024557,2]
[331943335,1720882238894,-37701.5661362,0.00024647,3]
[331943336,1720882238904,-209.08385375,0.00024656,2]
[331943337,1720882238913,-403.99911762,0.00024656,2]
[331943338,1720882238923,-500.0,0.00024656,2]
[331943340,1720882238932,-261.87171687,0.00024656,2]
[331943341,1720882238943,-500.0,0.00024656,2]
[331943343,1720882238953,-500.0,0.00024656,2]
[331943344,1720882238962,-500.0,0.00024656,2]
[331943346,1720882238971,-500.0,0.00024656,2]
[331943348,1720882238981,-424.72679533,0.00024656,2]
[331943349,1720882238991,-621.52506555,0.00024656,2]
[331943350,1720882239001,-500.0,0.00024656,2]
[331943351,1720882239011,-500.0,0.00024656,2]
[331943352,1720882239022,-500.0,0.00024656,2]
[331943353,1720882239035,-500.0,0.00024656,2]
[331943354,1720882239044,-210.53958905,0.00024657,2]
[331943355,1720882239053,-500.0,0.00024657,2]
[331943356,1720882239063,-500.0,0.00024657,2]
[331943357,1720882239074,-500.0,0.00024657,2]
[331943358,1720882239083,-540.37526299,0.00024657,2]
[331943359,1720882239093,-500.0,0.00024657,2]
[331943360,1720882239105,-500.0,0.00024657,2]
[331943361,1720882239114,-500.0,0.00024657,2]
[331943362,1720882239123,-500.0,0.00024657,2]
[331943363,1720882239133,-293.46168166,0.00024657,2]
[331943364,1720882239142,-500.0,0.00024657,2]
[331943365,1720882239152,-500.0,0.00024657,2]
[331943366,1720882239161,-500.0,0.00024657,2]
[331943367,1720882239170,-500.0,0.00024657,2]
[331943368,1720882239180,-500.0,0.00024657,2]
[331943369,1720882239189,-500.0,0.00024657,2]
[331943370,1720882239198,-500.0,0.00024657,2]
[331943371,1720882239208,-500.0,0.00024657,2]
[331943372,1720882239218,-500.0,0.00024657,2]
[331943373,1720882239227,-500.0,0.00024657,2]
[331943374,1720882239239,-540.05567798,0.00024657,2]
[331943375,1720882239248,-500.0,0.00024657,2]
[331943376,1720882239258,-500.0,0.00024657,2]
[331943377,1720882239267,-500.0,0.00024657,2]
[331943378,1720882239277,-500.0,0.00024657,2]
[331943379,1720882239286,-500.0,0.00024657,2]
[331943380,1720882239295,-500.0,0.00024657,2]
[331943382,1720882239305,-500.0,0.00024657,2]
[331943384,1720882239314,-500.0,0.00024657,2]
[331943386,1720882239323,-500.0,0.00024657,2]
[331943387,1720882239334,-400.72710089,0.00024657,2]
[331943389,1720882239343,-500.0,0.00024657,2]
[331943391,1720882239353,-500.0,0.00024657,2]
[331943393,1720882239362,-500.0,0.00024657,2]
[331943395,1720882239372,-500.0,0.00024657,2]
[331943397,1720882239381,-500.0,0.00024657,2]
[331943398,1720882239392,-364.5654729,0.00024657,2]
[331943400,1720882239401,-500.0,0.00024657,2]
[331943402,1720882239411,-500.0,0.00024657,2]
[331943403,1720882239421,-500.0,0.00024657,2]
[331943405,1720882239430,-500.0,0.00024657,2]
[331943407,1720882239441,-500.0,0.00024657,2]
[331943409,1720882239451,-500.0,0.00024657,2]
[331943411,1720882239460,-500.0,0.00024657,2]
[331943413,1720882239470,-500.0,0.00024657,2]
[331943414,1720882239480,-500.0,0.00024657,2]
[331943416,1720882239491,-504.96183611,0.00024657,2]
[331943417,1720882239500,-500.0,0.00024657,2]
[331943418,1720882239510,-500.0,0.00024657,2]
[331943419,1720882239520,-503.00377835,0.00024657,2]
[331943420,1720882239531,-500.0,0.00024657,2]
[331943421,1720882239541,-502.80870633,0.00024657,2]
[331943422,1720882239551,-500.0,0.00024657,2]
[331943423,1720882239560,-500.0,0.00024657,2]
[331943424,1720882239570,-500.0,0.00024657,2]
[331943425,1720882239579,-500.0,0.00024657,2]
[331943426,1720882239589,-500.0,0.00024657,2]
[331943427,1720882239599,-500.0,0.00024657,2]
[331943428,1720882239608,-500.0,0.00024657,2]
[331943429,1720882239620,-500.0,0.00024657,2]
[331943430,1720882239629,-500.0,0.00024657,2]
[331943431,1720882239639,-607.4335159,0.00024657,2]
[331943432,1720882239649,-500.0,0.00024657,2]
[331943433,1720882239658,-500.0,0.00024657,2]
[331943434,1720882239668,-500.0,0.00024657,2]
[331943435,1720882239677,-500.0,0.00024657,2]
[331943436,1720882239687,-500.0,0.00024657,2]
[331943437,1720882239696,-500.0,0.00024657,2]
[331943438,1720882239705,-500.0,0.00024657,2]
[331943439,1720882239715,-500.0,0.00024657,2]
[331943440,1720882239725,-500.0,0.00024657,2]
[331943441,1720882239734,-500.0,0.00024657,2]
[331943442,1720882239744,-500.0,0.00024657,2]
[331943443,1720882239753,-500.0,0.00024657,2]
[331943444,1720882239763,-500.0,0.00024657,2]
[331943445,1720882239772,-500.0,0.00024657,2]
[331943446,1720882239782,-500.0,0.00024657,2]
[331943447,1720882239791,-500.0,0.00024657,2]
[331943448,1720882239800,-500.0,0.00024657,2]
[331943449,1720882239894,-500.0,0.00024657,2]
[331943450,1720882239907,-500.0,0.00024657,2]
[331943451,1720882239917,-500.0,0.00024657,2]
[331943452,1720882239927,-500.0,0.00024657,2]
[331943453,1720882239936,-500.0,0.00024657,2]
[331943454,1720882239945,-500.0,0.00024657,2]
[331943455,1720882239954,-500.0,0.00024657,2]
[331943456,1720882239964,-500.0,0.00024657,2]
[331943457,1720882239973,-512.4038364,0.00024657,2]
[331943458,1720882239983,-303.1387691,0.00024657,2]
[331943459,1720882239994,-500.0,0.00024657,2]
[331943460,1720882240003,-500.0,0.00024657,2]
[331943461,1720882240017,-500.0,0.00024657,2]
[331943462,1720882240030,-500.0,0.00024657,2]
[331943463,1720882240038,-500.0,0.00024657,2]
[331943464,1720882240048,-500.0,0.00024657,2]
[331943465,1720882240058,-1000.0,0.00024657,5]
[331943466,1720882240067,-505.38532649,0.00024657,2]
[331943467,1720882240078,-500.0,0.00024657,2]
[331943468,1720882240087,-500.0,0.00024657,2]
[331943469,1720882240098,-500.0,0.00024657,2]
[331943470,1720882240107,-503.05,0.00024657,2]
[331943471,1720882240117,-500.0,0.00024657,2]
[331943472,1720882240127,-505.42580894,0.00024657,2]
[331943473,1720882240136,-500.0,0.00024657,2]
[331943474,1720882240146,-500.0,0.00024657,2]
[331943475,1720882240155,-500.0,0.00024657,2]
[331943476,1720882240164,-507.9055144,0.00024657,2]
[331943477,1720882240173,-500.0,0.00024657,2]
[331943478,1720882240184,-500.0,0.00024657,2]
[331943479,1720882240194,-500.0,0.00024657,2]
[331943481,1720882240203,-500.0,0.00024657,2]
[331943482,1720882240213,-500.0,0.00024657,2]
[331943483,1720882240222,-500.0,0.00024657,2]
[331943485,1720882240232,-500.0,0.00024657,2]
[331943487,1720882240242,-500.0,0.00024657,2]
[331943488,1720882240251,-500.0,0.00024657,2]
[331943489,1720882240261,-500.0,0.00024657,2]
[331943490,1720882240270,-517.9495124,0.00024657,2]
[331943491,1720882240279,-500.0,0.00024657,2]
[331943492,1720882240288,-500.0,0.00024657,2]
[331943494,1720882240298,-500.0,0.00024657,2]
[331943495,1720882240307,-500.0,0.00024657,2]
[331943496,1720882240316,-500.0,0.00024657,2]
[331943497,1720882240326,-500.0,0.00024657,2]
[331943498,1720882240335,-500.0,0.00024657,2]
[331943499,1720882240344,-500.0,0.00024657,2]
[331943501,1720882240354,-500.0,0.00024657,2]
[331943502,1720882240363,-500.0,0.00024657,2]
[331943503,1720882240373,-500.0,0.00024657,2]
[331943504,1720882240382,-500.0,0.00024657,2]
[331943505,1720882240392,-500.0,0.00024657,2]
[331943506,1720882240401,-500.0,0.00024657,2]
[331943508,1720882240410,-500.0,0.00024657,2]
[331943509,1720882240420,-252.27704523,0.00024657,2]
[331943511,1720882240429,-500.0,0.00024657,2]
[331943512,1720882240438,-500.0,0.00024657,2]
[331943513,1720882240447,-500.0,0.00024657,2]
[331943514,1720882240457,-509.16399424,0.00024657,2]
[331943515,1720882240466,-500.0,0.00024657,2]
[331943517,1720882240482,-500.0,0.00024657,2]
[331943519,1720882240497,-500.0,0.00024657,2]
[331943521,1720882240507,-4166.66,0.00024657,2]
[331943523,1720882240518,-329.77734117,0.00024657,2]
[331943524,1720882240528,-549.45184196,0.00024657,2]
[331943525,1720882240538,-500.0,0.00024657,2]
[331943527,1720882240548,-500.0,0.00024657,2]
[331943529,1720882240559,-500.0,0.00024657,2]
[331943531,1720882240569,-500.0,0.00024657,2]
[331943532,1720882240578,-500.0,0.00024657,2]
[331943533,1720882240588,-500.0,0.00024657,2]
[331943534,1720882240598,-500.0,0.00024657,2]
[331943536,1720882240608,-500.0,0.00024657,2]
[331943538,1720882240618,-484.33188511,0.00024657,2]
[331943540,1720882240629,-500.0,0.00024657,2]
[331943541,1720882240639,-500.0,0.00024657,2]
[331943542,1720882240649,-505.89779003,0.00024657,2]
[331943543,1720882240659,-500.0,0.00024657,2]
[331943544,1720882240669,-500.0,0.00024657,2]
[331943545,1720882240679,-500.0,0.00024657,2]
[331943546,1720882240689,-500.0,0.00024657,2]
[331943548,1720882240699,-500.0,0.00024657,2]
[331943550,1720882240708,-297.21626423,0.00024657,2]
[331943551,1720882240717,-500.0,0.00024657,2]
[331943552,1720882240727,-500.0,0.00024657,2]
[331943553,1720882240737,-500.0,0.00024657,2]
[331943554,1720882240747,-515.19541855,0.00024657,2]
[331943555,1720882240756,-500.0,0.00024657,2]
[331943556,1720882240766,-500.0,0.00024657,2]
[331943557,1720882240775,-500.0,0.00024657,2]
[331943558,1720882240785,-500.0,0.00024657,2]
[331943559,1720882240795,-506.93746464,0.00024657,2]
[331943560,1720882240804,-500.0,0.00024657,2]
[331943561,1720882240814,-500.0,0.00024657,2]
[331943562,1720882240824,-500.0,0.00024657,2]
[331943563,1720882240833,-500.0,0.00024657,2]
[331943564,1720882240842,-500.0,0.00024657,2]
[331943565,1720882240852,-500.0,0.00024657,2]
[331943566,1720882240861,-500.0,0.00024657,2]
[331943567,1720882240871,-500.0,0.00024657,2]
[331943568,1720882240881,-500.0,0.00024657,2]
[331943569,1720882240892,-591.9302122,0.00024657,2]
[331943570,1720882240901,-500.0,0.00024657,2]
[331943571,1720882240910,-512.44523419,0.00024657,2]
[331943572,1720882240919,-500.0,0.00024657,2]
[331943573,1720882240929,-300.33673601,0.00024657,2]
[331943574,1720882240938,-500.0,0.00024657,2]
[331943575,1720882240948,-336.23432254,0.00024657,2]
[331943576,1720882240957,-500.0,0.00024657,2]
[331943577,1720882240967,-364.16210115,0.00024657,2]
[331943578,1720882240977,-501.89413942,0.00024657,2]
[331943579,1720882240987,-500.0,0.00024657,2]
[331943580,1720882240997,-501.64946038,0.00024657,2]
[331943581,1720882241006,-500.0,0.00024657,2]
[331943582,1720882241016,-500.0,0.00024657,2]
[331943583,1720882241028,-500.0,0.00024657,2]
[331943584,1720882241038,-500.0,0.00024657,2]
[331943585,1720882241047,-643.91155442,0.00024657,2]
[331943586,1720882241057,-500.0,0.00024657,2]
[331943587,1720882241067,-500.0,0.00024657,2]
[331943588,1720882241077,-500.0,0.00024657,2]
[331943589,1720882241086,-579.40755103,0.00024657,2]
[331943590,1720882241095,-500.0,0.00024657,2]
[331943591,1720882241104,-500.0,0.00024657,2]
[331943592,1720882241114,-500.0,0.00024657,2]
[331943593,1720882241123,-500.0,0.00024657,2]
[331943594,1720882241133,-500.0,0.00024657,2]
[331943595,1720882241143,-500.0,0.00024657,2]
[331943596,1720882241152,-500.0,0.00024657,2]
[331943597,1720882241161,-520.22345154,0.00024657,2]
[331943598,1720882241170,-500.0,0.00024657,2]
[331943599,1720882241180,-500.0,0.00024657,2]
[331943600,1720882241189,-341.65877176,0.00024657,2]
[331943601,1720882241200,-500.0,0.00024657,2]
[331943602,1720882241209,-500.0,0.00024657,2]
[331943603,1720882241218,-500.0,0.00024657,2]
[331943604,1720882241227,-500.0,0.00024657,2]
[331943605,1720882241236,-500.0,0.00024657,2]
[331943606,1720882241246,-500.0,0.00024657,2]
[331943607,1720882241255,-500.0,0.00024657,2]
[331943608,1720882241265,-500.0,0.00024657,2]
[331943609,1720882241275,-500.0,0.00024657,2]
[331943610,1720882241286,-500.0,0.00024657,2]
[331943611,1720882241296,-500.0,0.00024657,2]
[331943612,1720882241306,-500.0,0.00024657,2]
[331943613,1720882241315,-500.0,0.00024657,2]
[331943614,1720882241326,-511.74475912,0.00024657,2]
[331943615,1720882241336,-500.0,0.00024657,2]
[331943616,1720882241346,-500.0,0.00024657,2]
[331943617,1720882241355,-520.35482301,0.00024657,2]
[331943618,1720882241364,-500.0,0.00024657,2]
[331943619,1720882241374,-519.03,0.00024657,2]
[331943620,1720882241383,-7809.43,0.00024657,2]
[331943621,1720882241394,-500.0,0.00024657,2]
[331943622,1720882241403,-500.0,0.00024657,2]
[331943623,1720882241412,-500.0,0.00024657,2]
[331943624,1720882241422,-500.0,0.00024657,2]
[331943625,1720882241432,-500.0,0.00024657,2]
[331943626,1720882241441,-500.0,0.00024657,2]
[331943627,1720882241450,-586.76098709,0.00024657,2]
[331943628,1720882241459,-500.0,0.00024657,2]
[331943629,1720882241468,-500.0,0.00024657,2]
[331943630,1720882241478,-500.0,0.00024657,2]
[331943631,1720882241488,-500.0,0.00024657,2]
[331943632,1720882241497,-500.0,0.00024657,2]
[331943633,1720882241506,-500.0,0.00024657,2]
[331943634,1720882241516,-500.0,0.00024657,2]
[331943635,1720882241526,-500.0,0.00024657,2]
[331943636,1720882241536,-500.0,0.00024657,2]
[331943637,1720882241545,-500.0,0.00024657,2]
[331943638,1720882241554,-1310.33,0.00024657,2]
[331943639,1720882241564,-500.0,0.00024657,2]
[331943640,1720882241573,-500.0,0.00024657,2]
[331943641,1720882241582,-500.0,0.00024657,2]
[331943642,1720882241592,-500.0,0.00024657,2]
[331943643,1720882241601,-500.0,0.00024657,2]
[331943644,1720882241610,-500.0,0.00024657,2]
[331943645,1720882241619,-500.0,0.00024657,2]
[331943646,1720882241628,-500.0,0.00024657,2]
[331943647,1720882241638,-500.0,0.00024657,2]
[331943648,1720882241648,-500.0,0.00024657,2]
[331943649,1720882241657,-500.0,0.00024657,2]
[331943650,1720882241666,-500.0,0.00024657,2]
[331943651,1720882241675,-500.0,0.00024657,2]
[331943652,1720882241684,-500.0,0.00024657,2]
[331943653,1720882241693,-500.0,0.00024657,2]
[331943654,1720882241702,-500.0,0.00024657,2]
[331943655,1720882241712,-500.83096736,0.00024657,2]
[331943656,1720882241721,-500.0,0.00024657,2]
[331943657,1720882241731,-500.0,0.00024657,2]
[331943658,1720882241741,-500.0,0.00024657,2]
[331943659,1720882241750,-500.0,0.00024657,2]
[331943660,1720882241760,-500.0,0.00024657,2]
[331943661,1720882241769,-500.0,0.00024657,2]
[331943662,1720882241778,-500.0,0.00024657,2]
[331943663,1720882241787,-500.0,0.00024657,2]
[331943664,1720882241797,-500.0,0.00024657,2]
[331943665,1720882241806,-500.0,0.00024657,2]
[331943666,1720882241815,-500.0,0.00024657,2]
[331943667,1720882241824,-500.0,0.00024657,2]
[331943668,1720882241833,-500.0,0.00024657,2]
[331943669,1720882241843,-502.84727923,0.00024657,2]
[331943670,1720882241852,-500.0,0.00024657,2]
[331943671,1720882241861,-501.4063897,0.00024657,2]
[331943672,1720882241870,-604.21978585,0.00024657,2]
[331943673,1720882241879,-500.0,0.00024657,2]
[331943674,1720882241889,-500.0,0.00024657,2]
[331943675,1720882241898,-500.0,0.00024657,2]
[331943676,1720882241907,-500.0,0.00024657,2]
[331943677,1720882241916,-500.0,0.00024657,2]
[331943678,1720882241925,-500.0,0.00024657,2]
[331943679,1720882241934,-500.19242717,0.00024657,2]
[331943680,1720882241945,-500.0,0.00024657,2]
[331943681,1720882241955,-500.0,0.00024657,2]
[331943682,1720882241965,-500.0,0.00024657,2]
[331943683,1720882241975,-500.0,0.00024657,2]
[331943684,1720882241984,-373.81177213,0.00024657,2]
[331943685,1720882241994,-500.0,0.00024657,2]
[331943686,1720882242004,-500.0,0.00024657,2]
[331943687,1720882242014,-500.0,0.00024657,2]
[331943688,1720882242025,-7637.71638996,0.00024694,2]
[331943689,1720882242039,-150.112233,0.000247,5]
[331943690,1720882242049,-150.112233,0.000247,3]
[331943691,1720882242058,-878.33419801,0.00024821,3]
[331943692,1720882242068,-7637.71638996,0.00024831,2]
[331943693,1720882242079,-302.63665813,0.000249,2]
[331943694,1720882242089,-500.0,0.0002492,2]
[331943695,1720882242098,-25134.3774241,0.00024921,3]
[331943696,1720882242109,-500.0,0.0002493,2]
[331943697,1720882242119,-500.0,0.00024931,2]
[331943698,1720882242128,-500.0,0.00024931,2]
[331943699,1720882242138,-500.0,0.00024931,2]
[331943700,1720882242147,-597.16461742,0.00024931,2]
[331943701,1720882242157,-500.0,0.00024931,2]
[331943702,1720882242166,-577.84,0.00024931,2]
[331943703,1720882242175,-500.0,0.00024931,2]
[331943704,1720882242184,-500.0,0.00024931,2]
[331943705,1720882242194,-500.0,0.00024931,2]
[331943706,1720882242203,-500.0,0.00024931,2]
[331943707,1720882242212,-500.0,0.00024931,2]
[331943708,1720882242221,-500.0,0.00024931,2]
[331943709,1720882242230,-500.0,0.00024931,2]
[331943710,1720882242241,-500.0,0.00024931,2]
[331943711,1720882242250,-500.0,0.00024931,2]
[331943712,1720882242259,-536.3330539,0.00024931,2]
[331943713,1720882242269,-531.93,0.00024931,2]
[331943714,1720882242278,-500.0,0.00024931,2]
[331943715,1720882242287,-500.0,0.00024931,2]
[331943716,1720882242296,-500.0,0.00024931,2]
[331943717,1720882242402,-500.0,0.00024931,2]
[331943718,1720882242412,-500.0,0.00024931,2]
[331943719,1720882242421,-500.0,0.00024931,2]
[331943720,1720882242432,-500.0,0.00024931,2]
[331943721,1720882242441,-500.0,0.00024931,2]
[331943722,1720882242451,-507.59354595,0.00024931,2]
[331943723,1720882242460,-576.15,0.00024931,2]
[331943724,1720882242469,-500.0,0.00024931,2]
[331943725,1720882242479,-500.0,0.00024931,2]
[331943726,1720882242488,-500.0,0.00024931,2]
[331943727,1720882242497,-500.0,0.00024931,2]
[331943728,1720882242507,-500.0,0.00024931,2]
[331943729,1720882242519,-255.9362514,0.00024931,2]
[331943730,1720882242531,-500.0,0.00024931,2]
[331943731,1720882242541,-1000.0,0.00024931,5]
[331943732,1720882242551,-500.0,0.00024931,2]
[331943733,1720882242561,-500.0,0.00024931,2]